Workbook

Sheet Лист1
D1: Отправить данные в минэкономики
B2: Выполнение проектов/мероприятий программы развития производительных сил | C2: Выполнение проектов/мероприятий программы развития производительных сил | D2: Выполнение проектов/мероприятий программы развития производительных сил | E2: Выполнение проектов/мероприятий программы развития производительных сил | F2: Выполнение проектов/мероприятий программы развития производительных сил | G2: Выполнение проектов/мероприятий программы развития производительных сил | H2: Выполнение проектов/мероприятий программы развития производительных сил
B3: Тонкинский район | C3: Тонкинский район | D3: Тонкинский район | E3: Тонкинский район
B4: I полугодие 2015 | C4: I полугодие 2015 | D4: I полугодие 2015 | E4: I полугодие 2015
B6: № | C6: Наименование предприятия/хозяйствующего субъекта (с указанием типа - крупное, среднее, малое, ИП)/наименование поселения | D6: Наименование проекта/мероприятия | E6: Сроки реализации | F6: Объем финансирования, млн. руб. | G6: Объем финансирования, млн. руб. | H6: Объем финансирования, млн. руб. | I6: Объем финансирования, млн. руб. | J6: Объем финансирования, млн. руб. | K6: Объем финансирования, млн. руб. | L6: Объем финансирования, млн. руб. | M6: Объем финансирования, млн. руб. | N6: Объем финансирования, млн. руб. | O6: Объем финансирования, млн. руб. | P6: Объем финансирования, млн. руб. | Q6: Объем финансирования, млн. руб. | R6: Эффект от реализации проектов /мероприятий | S6: Эффект от реализации проектов /мероприятий | T6: Эффект от реализации проектов /мероприятий | U6: Эффект от реализации проектов /мероприятий | V6: Эффект от реализации проектов /мероприятий | W6: Эффект от реализации проектов /мероприятий | X6: Эффект от реализации проектов /мероприятий | Y6: Эффект от реализации проектов /мероприятий | Z6: Эффект от реализации проектов /мероприятий | AA6: Эффект от реализации проектов /мероприятий | AB6: Эффект от реализации проектов /мероприятий | AC6: Эффект от реализации проектов /мероприятий | AD6: Дополнительная информация о проекте/мероприятии (с указанием причин невыполнения)
B7: № | C7: Наименование предприятия/хозяйствующего субъекта (с указанием типа - крупное, среднее, малое, ИП)/наименование поселения | D7: Наименование проекта/мероприятия | E7: Сроки реализации | F7: Всего, в т.ч. | G7: Всего, в т.ч. | H7: Всего, в т.ч. | I7: Областной бюджет | J7: Областной бюджет | K7: Областной бюджет | L7: Областной бюджет | M7: Областной бюджет | N7: Областной бюджет | O7: Частные инвестиции (собственные и привлеченные средства) | P7: Частные инвестиции (собственные и привлеченные средства) | Q7: Частные инвестиции (собственные и привлеченные средства) | R7: Объем отгруженной продукции (услуг), млн.руб. | S7: Объем отгруженной продукции (услуг), млн.руб. | T7: Объем отгруженной продукции (услуг), млн.руб. | U7: Объем оборота розничной торговли и общественного питания, млн. руб. | V7: Объем оборота розничной торговли и общественного питания, млн. руб. | W7: Объем оборота розничной торговли и общественного питания, млн. руб. | X7: Налоговые поступления в консолидированный бюджет, млн.руб. | Y7: Налоговые поступления в консолидированный бюджет, млн.руб. | Z7: Налоговые поступления в консолидированный бюджет, млн.руб. | AA7: Создано рабочих мест, ед. | AB7: Создано рабочих мест, ед. | AC7: Создано рабочих мест, ед. | AD7: Дополнительная информация о проекте/мероприятии (с указанием причин невыполнения)
B8: № | C8: Наименование предприятия/хозяйствующего субъекта (с указанием типа - крупное, среднее, малое, ИП)/наименование поселения | D8: Наименование проекта/мероприятия | E8: Сроки реализации | F8: План | G8: Освоено (кассовые расходы) в рамках ПРПС | H8: % освоения средств от плана | I8: План | J8: Профинансировано в рамках ПРПС | K8: Освоено (кассовые расходы) в рамках ПРПС | L8: % финансирования от плана | M8: % освоения средств от объема финансирования | N8: % освоения средств от плана | O8: План | P8: Факт | Q8: % от плана | R8: План | S8: Факт | T8: % от плана | U8: План | V8: Факт | W8: % от плана | X8: План | Y8: Факт | Z8: % от плана | AA8: План | AB8: Факт | AC8: % от плана | AD8: Дополнительная информация о проекте/мероприятии (с указанием причин невыполнения)
B9: 9.150 | C9: МУП "Тонкинские теплосети" / Малое / Тонкино | D9: 9.150 Проект по использованию отходов деревообработки для выработки теплоэнергии | E9: 2015 - 2017 | F9: 0.9 | H9: 0 | O9: 0.9 | Q9: 0 | R9: 40 | S9: 27.39 | T9: 0 | X9: 6 | Y9: 4.05 | Z9: 0 | AA9: 6 | AB9: 0 | AC9: 0
B10: 9.151 | C10: ИП Голубев О.Е. / ИП / | D10: 9.151 Творческая мастерская "Свечевар" | E10: 2015 - 2017 | F10: 0.1 | H10: 0 | O10: 0.1 | P10: 0.1 | Q10: 0 | R10: 0.9 | S10: 0.5 | T10: 0 | X10: 0.2 | Y10: 0.1 | Z10: 0 | AA10: 2 | AB10: 2 | AC10: 0
B11: 3.162 | C11: ООО "Фармстронг" / Малое / Тонкино | D11: 3.162 Создание строительного предприятия | E11: 2015 - 2017
B12: 3.163 | C12: ООО «Кварц» / Малое / | D12: 3.163 Создание строительного предприятия | E12: 2015 - 2017 | F12: 3 | H12: 0 | O12: 3 | P12: 3 | Q12: 0 | R12: 3 | T12: 0 | X12: 0.2 | Z12: 0 | AA12: 5 | AB12: 5 | AC12: 0
B13: 2.484. | C13: ОАО "Молоко" / Малое / Тонкино | D13: 2.484. Создание предприятия по розливу питьевой воды | E13: 2015 - 2017
B14: 2.485. | C14: ООО "ТД "Агрофирма "Нива" / Малое / Тонкино | D14: 2.485. Цех по первичной переработке мяса и молока | E14: 2015 - 2017 | R14: 1.8 | S14: 1.65 | T14: 0 | X14: 0.27 | Y14: 0.2 | Z14: 0
B15: 1.904 | C15: ООО "Тонкино-лес" / Малое / Тонкино | D15: 1.904 Реконструкция действующего производства | E15: 2015 - 2017 | R15: 8 | S15: 6.9 | T15: 0 | X15: 1.68 | Y15: 1.43 | Z15: 0 | AA15: 10 | AB15: 10 | AC15: 0
B16: 1.905 | C16: ООО "Лесное" / Малое / Тонкино | D16: 1.905 Реконструкция действующего производства | E16: 2015 - 2017 | F16: 6 | H16: 0 | O16: 6 | P16: 3.5 | Q16: 0 | R16: 11 | S16: 5.6 | T16: 0 | X16: 2.31 | Y16: 1.16 | Z16: 0
B17: 1.906 | C17: ООО "Надежда" / Малое / Тонкино | D17: 1.906 Модернизация цеха по деревообработке | E17: 2015 - 2017 | R17: 3 | S17: 1.5 | T17: 0 | X17: 0.63 | Y17: 0.32 | Z17: 0
B18: 1.907 | C18: ИП Аревшатян А.А. / ИП / | D18: 1.907 Строительство пекарни | E18: 2015 - 2017 | F18: 0.85 | H18: 0 | O18: 0.85 | Q18: 0
B19: 1.908 | C19: ООО "Теремъ" / Малое / Тонкино | D19: 1.908 Создание предприятия по производству клееного бруса | E19: 2015 - 2017
B20: 1.909 | C20: ИП Тимачев В. / ИП / Тонкино | D20: 1.909 Создание предприятия по производству искусственного камня | E20: 2015 - 2017 | R20: 1.3 | S20: 0.7 | T20: 0 | X20: 0.27 | Y20: 0.14 | Z20: 0
B21: 1.910 | C21: ООО "Агрофирма "Нива" / Малое / Тонкино | D21: 1.910 Строительство завода по переработке льна | E21: 2015 - 2017 | R21: 7.6 | S21: 4.1 | T21: 0 | X21: 1.3 | Y21: 0.65 | Z21: 0
B22: 1.911 | C22: ООО "Дубрава" / Малое / | D22: 1.911 Создание деревообрабатывающего предприятия | E22: 2015 - 2017 | F22: 6 | H22: 0 | O22: 6 | P22: 6.04 | Q22: 0 | R22: 3 | S22: 1 | T22: 0 | X22: 0.36 | Y22: 0.18 | Z22: 0 | AA22: 7 | AB22: 7 | AC22: 0
B23: 1.912 | C23: ИП Аревшатян Г.В. / ИП / | D23: 1.912 Производство и ремонт мебели | E23: 2015 - 2017 | F23: 1.3 | H23: 0 | I23: 0.3 | J23: 0.3 | K23: 0.3 | L23: 0 | N23: 0 | O23: 1 | P23: 1 | Q23: 0 | R23: 1.5 | T23: 0 | X23: 0.15 | Y23: 0.8 | Z23: 0 | AA23: 2 | AB23: 2 | AC23: 0
B24: 2.486. | C24: ООО "Агрофирма "Нива" / Малое / | D24: 2.486. Строительство молочно-товарной фермы на 408 голов | E24: 2015 - 2017 | F24: 8 | H24: 0 | O24: 8 | P24: 4 | Q24: 0 | X24: 0.02 | Z24: 0 | AA24: 2 | AC24: 0
B25: 2.487. | C25: ООО "Агрофирма Нива" / Малое / Большесодомовский | D25: 2.487. Приобретение сельскохозяйственной техники | E25: 2015 - 2017 | F25: 12 | H25: 0 | O25: 12 | P25: 1.48 | Q25: 0 | R25: 1 | S25: 0.5 | T25: 0 | X25: 0.02 | Y25: 0.01 | Z25: 0
B26: 2.488. | C26: ИП района / ИП / | D26: 2.488. Создание рыбохозяйства | E26: 2015 - 2017 | F26: 2 | H26: 0 | O26: 2 | Q26: 0 | X26: 0.01 | Z26: 0 | AA26: 2 | AC26: 0
B27: 1.913 | C27: ИП Ускова Т.В. / ИП / | D27: 1.913 Строительство магазина "Продукты" | E27: 2015 - 2017 | P27: 0.85 | U27: 15 | V27: 2 | W27: 0 | X27: 2.7 | Y27: 0.3 | Z27: 0 | AA27: 25 | AB27: 2 | AC27: 0
B28: 1.914 | C28: Магазин " Магнит" / Крупное / | D28: 1.914 Строительство магазина "Магнит" | E28: 2015 - 2017 | F28: 13 | H28: 0 | O28: 13 | P28: 10.2 | Q28: 0 | U28: 13 | W28: 0 | X28: 2.08 | Z28: 0 | AA28: 20 | AC28: 0
B29: 1.915 | C29: ООО"РосСтрой-Сервис" / ИП / | D29: 1.915 Создание предприятия по ремонту грузового автотранспорта и лесозаготовительной техники | E29: 2015 - 2017
B30: 1.916 | C30: ИП Суворова Т.С. / ИП / Тонкино | D30: 1.916 Открытие магазина "Продукты" | E30: 2015 - 2017 | U30: 3.5 | V30: 1.9 | W30: 0 | X30: 0.6 | Y30: 0.3 | Z30: 0
B31: 1.917 | C31: Тонкинское райпо / Среднее / Тонкино | D31: 1.917 Открытие магазина "Строительные материалы" | E31: 2015 - 2017 | U31: 6.9 | V31: 3.8 | W31: 0 | X31: 1.3 | Y31: 0.71 | Z31: 0
B32: 1.918 | C32: Тонкинское райпо / Среднее / | D32: 1.918 Открытие магазина по продаже смешанных товаров | E32: 2015 - 2017 | F32: 1 | H32: 0 | O32: 1 | P32: 0.05 | Q32: 0
B33: 1.919 | C33: ИП Зорин / ИП / Тонкино | D33: 1.919 Расширение перечня услуг на станции технического обслуживания автомобилей | E33: 2015 - 2017 | R33: 1 | S33: 0.54 | T33: 0 | X33: 0.2 | Y33: 0.1 | Z33: 0 | AA33: 4 | AB33: 4 | AC33: 0
B34: 1.920 | C34: ИП Метелькова / ИП / | D34: 1.920 Открытие магазина "Мебель" | E34: 2015 - 2017 | U34: 4 | V34: 2.1 | W34: 0 | X34: 0.8 | Y34: 0.4 | Z34: 0
B35: 1.921 | C35: ООО "ТД "Агрофирма "Нива" / Малое / | D35: 1.921 Открытие кафе | E35: 2015 - 2017 | U35: 3.5 | V35: 1.9 | W35: 0 | X35: 0.6 | Y35: 0.44 | Z35: 0
B36: 1.922 | C36: ИП Бушуев / ИП / Тонкино | D36: 1.922 Открытие станции технического обслуживания автомобилей | E36: 2015 - 2017 | R36: 4 | S36: 2.1 | T36: 0 | X36: 0.7 | Y36: 0.35 | Z36: 0
B37: 1.923 | C37: ИП Скворцова М.С. / ИП / | D37: 1.923 Открытие косметического кабинета | E37: 2015 - 2017 | P37: 1.35 | V37: 0.03 | Y37: 0.01 | AB37: 1
B38: 4.60 | C38: ООО «ДСК Тонкинская» / / | D38: 4.60 Реконструкция и обновление парка строительных машин и оборудования по ремонту, строительству и содержанию дорог | E38: 2015 - 2017 | F38: 6 | H38: 0 | I38: 0.8 | J38: 0.8 | K38: 0.8 | L38: 0 | N38: 0 | O38: 5.2 | P38: 5.2 | Q38: 0 | R38: 45 | S38: 30.9 | T38: 0 | X38: 8 | Y38: 5.5 | Z38: 0 | AA38: 2 | AB38: 3 | AC38: 0
F39: =J39+O39 -> 60.15 | G39: =K39+P39 -> 37.87 | J39: =J9+J10+J11+J12+J13+J14+J15+J16+J17+J19+J20+J18+J21+J22+J23+J24+J25+J26+J27+J28+J29+J30+J31+J32+J33+J34+J36+J37+J35+J38 -> 1.1 | K39: =K9+K10+K11+K12+K13+K14+K15+K16+K17+K19+K20+K18+K21+K22+K23+K24+K25+K26+K27+K28+K29+K30+K31+K32+K33+K34+K36+K37+K35+K38 -> 1.1 | L39: =L9+L10+L11+L12+L13+L14+L15+L16+L17+L19+L20+L18+L21+L22+L23+L24+L25+L26+L27+L28+L29+L30+L31+L32+L33+L34+L36+L37+L35+L38 -> 0 | O39: =O9+O10+O11+O12+O13+O14+O15+O16+O17+O19+O20+O18+O21+O22+O23+O24+O25+O26+O27+O28+O29+O30+O31+O32+O33+O34+O36+O37+O35+O38 -> 59.05 | P39: =P9+P10+P11+P12+P13+P14+P15+P16+P17+P19+P20+P18+P21+P22+P23+P24+P25+P26+P27+P28+P29+P30+P31+P32+P33+P34+P36+P37+P35+P38 -> 36.77 | Q39: =P39/O39*100 -> 62.26926334 | R39: =R9+R10+R11+R12+R13+R14+R15+R16+R17+R19+R20+R18+R21+R22+R23+R24+R25+R26+R27+R28+R29+R30+R31+R32+R33+R34+R36+R37+R35+R38 -> 132.1 | S39: =S9+S10+S11+S12+S13+S14+S15+S16+S17+S19+S20+S18+S21+S22+S23+S24+S25+S26+S27+S28+S29+S30+S31+S32+S33+S34+S36+S37+S35+S38 -> 83.38 | T39: =S39/R39*100 -> 63.11884936 | U39: =U9+U10+U11+U12+U13+U14+U15+U16+U17+U19+U20+U18+U21+U22+U23+U24+U25+U26+U27+U28+U29+U30+U31+U32+U33+U34+U36+U37+U35+U38 -> 45.9 | V39: =V9+V10+V11+V12+V13+V14+V15+V16+V17+V19+V20+V18+V21+V22+V23+V24+V25+V26+V27+V28+V29+V30+V31+V32+V33+V34+V36+V37+V35+V38 -> 11.73 | W39: =V39/U39*100 -> 25.55555556 | X39: =X9+X10+X11+X12+X13+X14+X15+X16+X17+X19+X20+X18+X21+X22+X23+X24+X25+X26+X27+X28+X29+X30+X31+X32+X33+X34+X36+X37+X35+X38 -> 30.4 | Y39: =Y9+Y10+Y11+Y12+Y13+Y14+Y15+Y16+Y17+Y19+Y20+Y18+Y21+Y22+Y23+Y24+Y25+Y26+Y27+Y28+Y29+Y30+Y31+Y32+Y33+Y34+Y36+Y37+Y35+Y38 -> 17.15 | Z39: =Y39/X39*100 -> 56.41447368 | AA39: =AA9+AA10+AA11+AA12+AA13+AA14+AA15+AA16+AA17+AA19+AA20+AA18+AA21+AA22+AA23+AA24+AA25+AA26+AA27+AA28+AA29+AA30+AA31+AA32+AA33+AA34+AA36+AA37+AA35+AA38 -> 87 | AB39: =AB9+AB10+AB11+AB12+AB13+AB14+AB15+AB16+AB17+AB19+AB20+AB18+AB21+AB22+AB23+AB24+AB25+AB26+AB27+AB28+AB29+AB30+AB31+AB32+AB33+AB34+AB36+AB37+AB35+AB38 -> 36 | AC39: =AB39/AA39*100 -> 41.37931034
